bitfinex/quotes_SOLUSD_20240727
["timestamp","ask_amount","ask_price","bid_price","bid_amount"]
[1722049515998,12.98,183.88,183.86,5.4389]
[1722049517000,0.17,183.88,183.86,5.4389]
[1722049517174,0.17,183.88,183.87,5.4386]
[1722049517385,15.7637,183.93,183.88,5.438]
[1722049517688,12.81,183.91,183.88,5.438]
[1722049517891,0.34,183.9,183.88,5.438]
[1722049519096,12.81,183.91,183.9,5.4377]
[1722049519277,12.81,183.92,183.9,5.4377]
[1722049519783,12.81,183.95,183.93,5.4368]
[1722049520386,21.0043,183.98,183.94,5.4365]
[1722049520589,12.81,183.97,183.94,5.4365]
[1722049520796,12.81,183.97,183.95,13.5902]
[1722049521001,12.81,183.97,183.96,5.4359]
[1722049521303,12.81,183.98,183.95,19.0264]
[1722049521476,21.838,184.03,183.95,13.5902]
[1722049521673,21.838,184.03,183.97,5.4356]
[1722049521874,15.5689,184.03,183.94,12.81]
[1722049522103,12.81,184.03,183.95,28.26832369]
[1722049522283,12.81,184.01,183.94,12.81]
[1722049522485,12.81,183.99,183.97,5.4356]
[1722049522688,12.81,183.98,183.96,19.025]
[1722049522891,5.4345,184.01,183.96,19.025]
[1722049523081,51.24,184.05,183.96,13.5891]
[1722049523282,12.81,183.99,183.96,13.5891]
[1722049523473,5.4344,184.02,183.96,13.5891]
[1722049523474,0.34,183.98,183.96,19.0248]
[1722049523880,0.34,183.98,183.97,5.4356]
[1722049524104,12.81,184.02,183.99,5.4348]
[1722049524510,12.98,184.03,184.0,5.4347]
[1722049524692,15.5689,184.07,184.01,5.4343]
[1722049524889,15.5689,184.07,184.01,13.5855]
[1722049525081,15.5689,184.07,184.05,5.4332]
[1722049525279,6.2691,184.11,184.06,5.4329]
[1722049525280,12.81,184.09,184.06,5.4329]
[1722049526181,12.81,184.09,184.06,13.5825]
[1722049526613,12.81,184.09,184.06,19.0154]
[1722049526989,21.0004,184.11,184.06,19.0154]
[1722049527608,5.4309,184.13,184.07,5.4325]
[1722049527788,5.4309,184.13,184.08,5.4322]
[1722049528107,6.2691,184.15,184.08,5.4322]
[1722049528290,5.4312,184.13,184.08,5.4323]
[1722049528689,6.2691,184.15,184.06,19.0152]
[1722049528890,20.0,184.13,184.02,13.5847]
[1722049529790,25.56,184.11,184.02,13.5847]
[1722049530116,5.433,184.07,184.02,13.5847]
[1722049530313,20.34,184.06,183.97,6.4833]
[1722049530523,5.4335,184.05,184.0,5.4347]
[1722049530818,0.34,184.04,184.0,5.4347]
[1722049531017,0.34,184.04,183.99,5.435]
[1722049531216,0.34,184.04,184.0,13.5866]
[1722049531394,0.17,184.03,184.0,13.5866]
[1722049531595,0.34,184.05,184.0,13.5866]
[1722049532108,5.603,184.06,184.0,19.0211]
[1722049532423,5.6033,184.05,184.0,19.0213]
[1722049532594,0.17,184.04,184.0,19.0213]
[1722049533006,0.17,184.04,184.01,5.4343]
[1722049533207,0.34,184.05,184.0,19.0213]
[1722049533587,5.7733,184.05,184.0,13.5866]
[1722049533795,5.7733,184.05,184.0,19.0213]
[1722049534105,5.4339,184.03,183.98,5.4352]
[1722049534309,0.17,184.02,183.96,13.5894]
[1722049534508,0.17,184.02,183.98,5.4353]
[1722049534726,0.34,184.02,183.96,13.5894]
[1722049535013,0.34,184.02,183.92,23.1232]
[1722049535014,20.0,184.06,183.94,27.1815]
[1722049535223,15.5689,184.07,184.05,5.4333]
[1722049535394,20.0,184.11,184.05,5.4333]
[1722049535593,21.838,184.12,184.05,13.5831]
[1722049535796,15.5689,184.12,184.08,5.4321]
[1722049536028,21.0001,184.12,184.07,5.4326]
[1722049536990,15.5689,184.12,184.05,13.5831]
[1722049537212,15.5689,184.12,184.08,5.4323]
[1722049537699,21.0002,184.12,184.06,5.4327]
[1722049539209,0.34,184.11,184.06,5.4327]
[1722049539398,0.34,184.11,184.05,13.5831]
[1722049539604,0.34,184.11,184.08,5.4321]
[1722049540127,0.17,184.1,184.08,5.4321]
[1722049540302,0.17,184.11,184.08,5.4321]
[1722049540504,0.17,184.11,184.09,5.432]
[1722049540704,0.17,184.12,184.09,5.432]
[1722049541002,0.34,184.13,184.09,5.432]
[1722049541407,5.4303,184.15,184.09,13.5797]
[1722049541615,20.0,184.14,184.1,5.4317]
[1722049542119,20.0,184.14,184.11,5.4315]
[1722049542351,25.4304,184.15,184.1,5.4317]
[1722049542698,20.0,184.15,184.11,5.4314]
[1722049543008,16.0769,184.16,184.12,5.4312]
[1722049543508,0.34,184.15,184.11,5.4314]
[1722049544937,0.34,184.15,184.12,5.4311]
[1722049545222,22.5161,184.21,184.06,27.164]
[1722049545428,27.9449,184.21,184.15,5.4302]
[1722049545816,5.4289,184.2,184.15,5.4302]
[1722049546016,5.4291,184.19,184.15,5.4302]
[1722049546221,5.4291,184.19,184.14,5.4306]
[1722049546411,5.4294,184.18,184.14,5.4306]
[1722049546606,0.34,184.17,184.1,13.5794]
[1722049546807,0.34,184.17,184.11,5.4313]
[1722049546808,5.4303,184.16,184.11,5.4313]
[1722049547006,0.17,184.15,184.12,5.4312]
[1722049547528,5.6,184.16,184.11,5.4314]
[1722049547829,5.6001,184.16,184.11,5.4314]
[1722049548236,5.4304,184.15,184.1,19.0112]
[1722049548411,0.17,184.14,184.1,19.0112]
[1722049548601,5.6006,184.14,184.1,13.5794]
[1722049548812,5.431,184.13,184.08,5.4323]
[1722049549119,0.34,184.12,184.08,5.4323]
[1722049549330,0.34,184.12,184.09,5.4321]
[1722049549520,20.0,184.18,184.1,5.4318]
[1722049549521,0.17,184.13,184.1,5.4318]
[1722049549718,20.34,184.14,184.1,5.4318]
[1722049550308,20.34,184.14,184.09,13.5798]
[1722049550628,25.7706,184.14,184.09,19.0118]
[1722049551017,25.7706,184.14,184.01,48.6588]
[1722049551018,5.4312,184.12,184.07,5.4324]
[1722049551227,0.17,184.11,184.08,5.4324]
[1722049551435,0.34,184.11,184.08,5.4324]
[1722049552123,0.17,184.12,184.08,5.4324]
[1722049552323,0.34,184.12,184.08,5.4324]
[1722049553124,0.34,184.12,184.09,5.432]
[1722049553430,0.34,184.12,184.08,13.5804]
[1722049553431,0.34,184.11,184.1,5.4317]
[1722049553939,0.17,184.11,184.1,5.4317]
[1722049554636,0.17,184.11,184.09,5.432]
[1722049554858,0.17,184.11,184.08,13.5804]
[1722049554859,0.17,184.11,184.08,19.0127]
[1722049555023,0.34,184.12,184.08,19.0127]
[1722049555721,0.34,184.12,184.09,5.432]
[1722049555924,0.34,184.11,184.09,5.432]
[1722049556129,0.17,184.13,184.09,5.432]
[1722049556315,0.34,184.13,184.09,5.432]
[1722049557241,13.11,184.13,184.09,5.432]
[1722049557735,18.5409,184.13,184.08,19.0127]
[1722049558110,18.5409,184.13,184.09,5.4321]
[1722049558307,0.34,184.13,184.09,5.4321]
[1722049558508,13.11,184.13,184.09,5.4321]
[1722049558709,12.77,184.12,184.09,5.4321]
[1722049558931,0.34,184.11,184.09,5.4321]
[1722049561560,0.34,184.11,183.97,1.08645371]
[1722049561561,12.77,184.1,183.98,27.1759]
[1722049561760,12.77,184.07,184.0,12.77]
[1722049561925,0.17,184.06,184.04,5.4333]
[1722049562425,12.94,184.06,184.04,5.4333]
[1722049562744,12.94,184.06,184.03,5.4338]
[1722049563429,12.94,184.06,184.04,5.4335]
[1722049563929,18.3731,184.06,184.02,13.5852]
[1722049564142,12.94,184.05,184.02,19.0193]
[1722049564348,0.17,184.04,184.02,13.5852]
[1722049564726,0.17,184.04,184.03,5.4338]
[1722049564926,15.2486,184.06,184.04,13.5835]
[1722049565235,0.17,184.05,184.04,19.0171]
[1722049567023,0.17,184.05,184.02,5.434]
[1722049567363,0.17,184.05,184.01,19.0203]
[1722049567526,0.17,184.05,183.99,5.4347]
[1722049567728,5.4338,184.03,183.98,19.0236]
[1722049567935,0.34,184.02,183.98,19.0236]
[1722049568328,0.34,184.02,183.99,5.435]
[1722049568533,15.4186,184.03,183.99,5.435]
[1722049568737,0.17,184.02,183.99,5.435]
[1722049568932,0.17,184.02,184.0,5.4347]
[1722049569262,0.17,184.02,184.01,5.4344]
[1722049569638,0.17,184.02,184.0,5.4347]
[1722049570533,0.17,184.02,184.01,5.4344]
[1722049571337,0.17,184.02,183.98,13.5883]
[1722049571541,5.6042,184.02,183.98,13.5883]
[1722049571862,0.17,184.01,183.98,19.0235]
[1722049572555,0.34,184.02,183.98,19.0235]
[1722049572856,5.4355,183.98,183.93,5.4365]
[1722049573036,15.2486,183.99,183.88,21.5781]
[1722049573037,0.17,183.97,183.88,21.5781]
[1722049573247,5.6057,183.97,183.92,19.0297]
[1722049573546,0.17,183.96,183.93,5.4368]
[1722049574065,0.17,183.96,183.94,5.4365]
[1722049574245,0.17,183.97,183.94,5.4365]
[1722049574444,0.34,183.97,183.94,5.4365]
[1722049574838,0.34,183.97,183.93,5.4367]
[1722049576043,5.7757,183.97,183.92,13.5928]
[1722049576243,0.34,183.97,183.92,13.5928]
[1722049576453,0.34,183.96,183.92,13.5928]
[1722049576670,65.17,183.98,183.94,5.4363]
[1722049576860,65.17,183.98,183.92,13.5928]
[1722049576861,0.17,183.97,183.92,13.5928]
[1722049577165,0.17,183.97,183.94,5.4364]
[1722049578252,0.17,183.97,183.87,27.1922]
[1722049578253,15.2486,183.99,183.95,19.0267]
[1722049578863,20.6837,183.99,183.95,13.5905]
[1722049579434,0.34,183.98,183.95,13.5905]
[1722049579641,5.7753,183.98,183.92,19.0294]
[1722049579892,5.7753,183.98,183.93,5.4367]
[1722049581568,5.7753,183.98,183.96,19.0257]
[1722049581569,0.34,183.98,183.96,19.0257]
[1722049581746,0.34,183.98,183.96,13.5898]
[1722049582967,0.34,183.98,183.95,5.4361]
[1722049584050,0.34,183.98,183.93,19.0283]
[1722049584250,5.4357,183.97,183.93,13.5918]
[1722049584572,0.34,183.96,183.84,21.5781]
[1722049584758,5.4362,183.95,183.9,5.4374]
[1722049584951,0.34,183.94,183.91,5.4374]
[1722049585152,0.17,183.94,183.91,5.4374]
[1722049585475,0.34,183.95,183.91,5.4374]
[1722049586176,0.34,183.95,183.89,5.4377]
[1722049586348,5.4368,183.93,183.89,5.4377]
[1722049586678,0.17,183.92,183.9,5.4376]
[1722049586848,0.17,183.93,183.9,5.4376]
[1722049587048,25.6064,183.95,183.9,5.4376]
[1722049587262,5.6065,183.94,183.9,5.4376]
[1722049587465,0.17,183.93,183.9,5.4376]
[1722049589374,5.6068,183.93,183.89,5.438]
[1722049589672,5.4371,183.92,183.87,13.5962]
[1722049589888,0.34,183.91,183.89,13.5946]
[1722049590051,0.17,183.91,183.89,13.5946]
[1722049590245,0.34,183.91,183.89,13.5946]
[1722049590560,0.34,183.9,183.89,13.5946]
[1722049591951,0.17,183.9,183.89,13.5946]
[1722049592157,6.6081,183.96,183.89,13.5946]
[1722049592393,25.7764,183.95,183.9,5.4376]
[1722049592557,20.34,183.95,183.9,5.4376]
[1722049592959,25.7762,183.95,183.9,5.4376]
[1722049593164,5.4356,183.98,183.93,5.4367]
[1722049595669,0.34,183.97,183.93,5.4367]
[1722049596997,5.7759,183.97,183.92,5.4371]
[1722049597382,5.436,183.96,183.91,13.5931]
[1722049597604,0.17,183.95,183.91,13.5931]
[1722049597767,0.34,183.95,183.91,13.5931]
[1722049598258,0.34,183.95,183.92,5.4371]
[1722049598894,0.34,183.96,183.92,5.4371]
[1722049600793,0.34,183.96,183.93,5.4368]
[1722049601090,0.34,183.96,183.91,13.5931]
[1722049601286,5.4362,183.95,183.91,13.5931]
[1722049601497,20.0,183.98,183.88,13.5958]
[1722049601498,0.17,183.94,183.88,13.5958]
[1722049601673,5.7767,183.94,183.89,5.4379]
[1722049602188,5.4369,183.93,183.88,19.034]
[1722049602366,0.34,183.92,183.88,19.034]
[1722049602780,0.34,183.92,183.88,13.5958]
[1722049602976,0.34,183.92,183.85,13.5978]
[1722049603189,5.4379,183.9,183.85,13.5978]
[1722049603492,5.4389,183.86,183.81,19.0406]
[1722049603692,5.4386,183.87,183.81,13.6005]
[1722049603866,0.34,183.86,183.81,13.6005]
[1722049604393,0.34,183.86,183.82,5.4398]
[1722049605576,15.661,183.86,183.82,5.4398]
[1722049605967,15.661,183.86,183.85,5.4392]
[1722049605968,0.17,183.86,183.85,5.4392]
[1722049607891,15.321,183.91,183.87,5.4385]
[1722049608076,0.34,183.9,183.88,13.5957]
[1722049608277,0.34,183.9,183.85,19.0366]
[1722049608476,5.7778,183.9,183.85,13.5977]
[1722049608995,5.7778,183.9,183.85,19.0368]
[1722049609298,5.438,183.89,183.85,13.5977]
[1722049609497,0.34,183.88,183.85,13.5977]
[1722049610096,0.34,183.88,183.85,19.0368]
[1722049610989,0.34,183.88,183.85,13.5977]
[1722049611369,45.34,183.88,183.82,13.6]
[1722049611570,50.7783,183.88,183.83,5.4398]
[1722049611996,45.34,183.88,183.84,5.4394]
[1722049615371,50.7783,183.88,183.84,5.4394]
[1722049616076,45.34,183.88,183.84,5.4394]
[1722049616273,0.34,183.88,183.84,5.4394]
[1722049616505,0.34,183.88,183.84,13.5981]
[1722049616880,0.34,183.87,183.84,13.5981]
[1722049617093,0.17,183.89,183.84,13.5981]
[1722049617282,0.34,183.89,183.84,13.5981]
[1722049617487,0.34,183.89,183.85,5.4391]
[1722049618112,0.34,183.89,183.86,5.4388]
[1722049618604,0.34,183.89,183.87,5.4385]
[1722049619106,0.34,183.89,183.86,5.4388]
[1722049619909,0.34,183.89,183.85,5.4391]
[1722049620082,0.34,183.89,183.8,13.6014]
[1722049620277,0.34,183.89,183.84,5.4392]
[1722049620580,0.34,183.89,183.85,5.4392]
[1722049621081,5.778,183.89,183.85,5.4392]
[1722049621282,5.778,183.89,183.84,12.8]
[1722049621512,5.778,183.89,183.84,18.2392]
[1722049621987,5.778,183.89,183.85,5.4391]
[1722049622808,0.34,183.89,183.87,5.4385]
[1722049622994,0.17,183.88,183.87,5.4385]
[1722049623303,0.17,183.88,183.86,19.0355]
[1722049623714,0.34,183.89,183.86,13.5967]
[1722049623877,13.14,183.89,183.83,13.5991]
[1722049624078,5.4388,183.87,183.83,13.5991]
[1722049624287,5.609,183.86,183.81,18.2401]
[1722049624803,0.17,183.86,183.82,26.3998]
[1722049625600,0.17,183.86,183.83,5.4395]
[1722049626812,0.17,183.86,183.82,31.8398]
[1722049628011,0.17,183.86,183.82,19.0398]
[1722049628312,0.17,183.86,183.82,31.8398]
[1722049628695,0.17,183.86,183.83,5.4397]
[1722049629495,0.34,183.87,183.83,5.4397]
[1722049629693,5.7786,183.87,183.83,5.4397]
[1722049630109,12.8,183.84,183.79,0.7773281]
[1722049630296,18.4098,183.83,183.79,0.7773281]
[1722049630502,0.17,183.82,183.79,0.7773281]
[1722049634196,12.97,183.82,183.79,0.7773281]
[1722049634420,12.8,183.8,183.79,0.7773281]
[1722049634714,12.97,183.8,183.79,0.7773281]
[1722049634912,21.648,183.84,183.79,0.7773281]
[1722049635085,0.34,183.83,183.79,14.3792281]
[1722049635289,0.34,183.83,183.8,12.8]
[1722049635486,0.34,183.83,183.81,5.4401]
[1722049635711,0.34,183.83,183.82,5.4401]
[1722049635909,0.34,183.83,183.8,18.2404]
[1722049636217,0.34,183.83,183.81,5.4403]
[1722049636896,18.2386,183.87,183.81,13.6005]
[1722049637101,5.4386,183.87,183.81,26.4005]
[1722049637304,20.0,183.86,183.82,12.8]
[1722049637498,20.0,183.86,183.79,0.7773281]
[1722049637499,16.2666,183.88,183.84,12.8]
[1722049637704,16.2666,183.88,183.79,0.7773281]
[1722049637705,18.2374,183.92,183.87,5.4386]
[1722049638912,20.0,183.91,183.87,5.4386]
[1722049639221,25.4375,183.91,183.86,5.4388]
[1722049639803,16.2666,183.93,183.88,13.5957]
[1722049640207,16.2666,183.93,183.89,5.4378]
[1722049640809,5.4365,183.94,183.89,5.4378]
[1722049641404,0.34,183.93,183.89,5.4378]
[1722049641703,5.7769,183.93,183.88,19.0339]
[1722049641907,5.4366,183.94,183.89,5.4379]
[1722049642317,16.2666,183.98,183.9,5.4376]
[1722049643022,5.4365,183.95,183.9,5.4376]
[1722049643214,5.6065,183.94,183.9,5.4376]
[1722049643517,0.17,183.94,183.86,68.94979385]
[1722049643700,0.17,183.96,183.92,5.437]
[1722049643901,5.7759,183.96,183.92,5.437]
[1722049644714,5.7759,183.96,183.91,5.4373]
[1722049646425,16.2666,183.98,183.94,5.4362]
[1722049646624,20.0,184.01,183.93,13.5915]
[1722049646838,5.4348,184.0,183.96,13.5893]
[1722049647129,20.0,183.99,183.96,13.5893]
[1722049647296,20.0,183.99,183.95,5.4361]
[1722049647905,0.17,183.98,183.95,5.4361]
[1722049648424,0.17,183.98,183.91,1.08713826]
[1722049648604,0.17,183.98,183.86,67.8624]
[1722049648605,0.17,183.98,183.89,13.5945]
[1722049649019,0.17,183.97,183.91,5.4374]
[1722049649322,5.4365,183.94,183.9,5.4376]
[1722049649532,16.2666,183.94,183.85,13.5977]
[1722049649722,5.4372,183.92,183.87,5.4385]
[1722049650022,5.6074,183.91,183.86,5.4388]
[1722049650204,0.17,183.91,183.87,5.4385]
[1722049650405,0.34,183.91,183.87,5.4385]
[1722049650606,0.34,183.91,183.88,5.4383]
[1722049650819,0.34,183.91,183.87,5.4385]
[1722049651523,0.34,183.91,183.88,5.4382]
[1722049651830,0.34,183.91,183.87,5.4385]
[1722049652323,65.34,183.91,183.85,13.5977]
[1722049652529,70.7777,183.91,183.86,5.4388]
[1722049652727,5.4377,183.9,183.85,19.0368]
[1722049652905,65.34,183.91,183.83,5.4397]
[1722049652906,5.4383,183.88,183.83,5.4397]
[1722049653100,5.6086,183.87,183.82,19.0402]
[1722049653311,0.17,183.86,183.83,5.4397]
[1722049653512,0.34,183.86,183.83,5.4397]
[1722049653726,0.17,183.86,183.83,5.4397]
[1722049653923,0.34,183.87,183.83,5.4397]
[1722049654228,0.34,183.87,183.82,13.6002]
[1722049654229,5.7787,183.87,183.82,13.6002]
[1722049654812,0.34,183.87,183.82,13.6002]
[1722049656330,5.7786,183.87,183.82,19.04]
[1722049657015,5.439,183.86,183.82,13.6002]
[1722049657215,0.17,183.85,183.82,13.6002]
[1722049657430,0.34,183.85,183.82,19.0402]
[1722049657935,0.17,183.84,183.82,19.0402]
[1722049658142,0.34,183.86,183.82,19.0402]
[1722049658620,0.34,183.86,183.79,14.3796281]
[1722049658828,16.0626,183.85,183.79,0.7773281]
[1722049659018,42.67,183.84,183.79,0.7773281]
[1722049659330,5.6097,183.84,183.79,6.2182281]
[1722049659516,5.6098,183.83,183.79,6.2182281]
[1722049659715,0.17,183.82,183.79,6.2182281]
[1722049659940,0.17,183.83,183.8,5.4406]
[1722049660122,20.17,183.84,183.8,5.4406]
[1722049660336,0.17,183.83,183.8,5.4406]
[1722049661340,0.17,183.83,183.79,19.8201281]
[1722049668415,5.6099,183.83,183.79,14.3792281]
[1722049668617,0.17,183.82,183.79,14.3792281]
[1722049669025,12.99,183.82,183.79,14.3792281]
[1722049669435,0.17,183.81,183.79,19.8201281]
[1722049669833,0.17,183.82,183.79,19.8201281]
[1722049670232,0.17,183.82,183.79,14.3792281]
[1722049670233,0.34,183.82,183.79,14.3792281]
[1722049670436,0.17,183.82,183.79,14.3792281]
[1722049670644,0.17,183.82,183.81,5.4404]
[1722049671129,0.17,183.82,183.8,5.4406]
[1722049671528,0.17,183.82,183.79,19.8201281]
[1722049671727,5.7798,183.83,183.79,19.8201281]
[1722049672134,12.82,183.81,183.79,0.7773281]
[1722049672320,0.17,183.8,183.79,0.7773281]
[1722049672643,0.34,183.8,183.79,6.2182281]
[1722049673537,0.34,183.8,183.79,0.7773281]
[1722049673723,0.34,183.8,183.79,6.2182281]
[1722049674043,0.17,183.8,183.79,6.2182281]
[1722049675238,0.17,183.8,183.79,0.7773281]
[1722049676350,0.17,183.8,183.79,6.2182281]
[1722049677129,0.17,183.8,183.79,0.7773281]
[1722049681025,5.6106,183.8,183.79,0.7773281]
[1722049681460,5.7806,183.8,183.79,0.7773281]
[1722049681960,0.34,183.8,183.79,0.7773281]
[1722049682932,0.17,183.8,183.79,6.2182281]
[1722049685552,16.0626,183.85,183.79,14.3790281]
[1722049685724,5.4386,183.87,183.82,5.44]
[1722049686054,5.4384,183.88,183.82,12.82]
[1722049686359,34.5583,183.89,183.84,5.4394]
[1722049687033,34.5583,183.89,183.79,0.7773281]
[1722049687034,5.4398,183.83,183.79,6.2182281]
[1722049687353,5.4401,183.82,183.79,0.7773281]
[1722049687539,12.82,183.83,183.79,0.7773281]
[1722049687540,5.7804,183.81,183.79,0.7773281]
[1722049687739,18.6004,183.81,183.79,0.7773281]
[1722049689142,5.7804,183.81,183.79,0.7773281]
[1722049689352,0.34,183.81,183.79,0.7773281]
[1722049690753,5.4406,183.8,183.79,0.7773281]
[1722049690956,90.7806,183.8,183.79,0.7773281]
[1722049691143,5.4417,183.77,183.72,5.443]
[1722049691342,45.17,183.76,183.72,5.443]
[1722049691538,45.34,183.76,183.72,5.443]
[1722049691738,5.4421,183.75,183.7,19.0522]
[1722049691938,0.34,183.74,183.71,5.4433]
[1722049692546,0.17,183.73,183.71,5.4433]
[1722049692739,0.17,183.74,183.71,5.4433]
[1722049693147,0.17,183.75,183.71,5.4433]
[1722049693349,0.34,183.75,183.71,5.4433]
[1722049693768,0.34,183.75,183.72,5.443]
[1722049695756,20.17,183.76,183.72,5.443]
[1722049695938,0.17,183.75,183.72,5.443]
[1722049696252,16.3003,183.81,183.72,13.607]
[1722049696458,5.4407,183.8,183.74,5.4421]
[1722049696660,5.441,183.79,183.74,19.0475]
[1722049697958,0.34,183.78,183.74,19.0475]
[1722049698459,5.4415,183.77,183.7,13.6084]
[1722049698761,0.17,183.76,183.7,13.6084]
[1722049698945,0.17,183.76,183.72,5.4427]
[1722049698946,0.34,183.76,183.72,5.4427]
[1722049699143,0.34,183.76,183.73,5.4427]
[1722049699342,0.34,183.76,183.74,5.4424]
[1722049699973,0.34,183.75,183.73,5.4427]
[1722049700164,0.17,183.77,183.73,5.4427]
[1722049700339,0.34,183.77,183.73,5.4427]
[1722049702260,0.34,183.77,183.75,5.442]
[1722049702464,21.7407,183.81,183.77,5.4414]
[1722049702838,16.3003,183.81,183.77,5.4414]
[1722049703243,21.7407,183.81,183.76,13.6042]
[1722049703441,16.3003,183.81,183.75,5.4419]
[1722049703645,20.0,183.8,183.73,13.6066]
[1722049703853,5.4413,183.78,183.73,19.0491]
[1722049704462,5.7816,183.77,183.73,19.0491]
[1722049704657,5.6116,183.77,183.73,19.0491]
[1722049704857,0.17,183.76,183.73,19.0491]
[1722049705276,0.17,183.76,183.69,13.6098]
[1722049705277,5.4423,183.75,183.69,13.6098]
[1722049705466,45.34,183.74,183.7,5.4434]
[1722049706055,50.7825,183.74,183.69,19.0536]
[1722049707058,50.7825,183.74,183.7,5.4436]
[1722049707776,50.7825,183.74,183.69,19.0536]
[1722049708279,5.4428,183.73,183.69,13.6098]
[1722049708482,0.34,183.72,183.69,13.6098]
[1722049708772,0.34,183.72,183.69,19.0537]
[1722049708974,0.17,183.71,183.69,19.0537]
[1722049709172,0.17,183.71,183.7,5.4436]
[1722049710755,0.17,183.71,183.69,19.0537]
[1722049711363,0.17,183.71,183.7,5.4436]
[1722049713481,0.17,183.72,183.7,5.4436]
[1722049713669,0.17,183.73,183.7,5.4436]
[1722049713980,0.34,183.73,183.7,5.4436]
[1722049714977,0.34,183.73,183.71,5.4432]
[1722049715664,16.2853,183.74,183.72,5.4429]
[1722049716181,16.2853,183.74,183.71,5.4432]
[1722049716982,0.17,183.73,183.71,5.4432]
[1722049718875,0.17,183.75,183.72,5.443]
[1722049719081,0.17,183.75,183.71,26.4378]
[1722049719281,0.34,183.76,183.71,26.4378]
[1722049720187,0.34,183.76,183.73,5.4426]
[1722049720381,0.34,183.76,183.72,5.4429]
[1722049721885,5.4425,183.74,183.69,5.4437]
[1722049722072,5.4425,183.74,183.68,13.6102]
[1722049722073,0.17,183.73,183.68,26.4402]
[1722049722277,0.34,183.73,183.68,26.4402]
[1722049722884,0.34,183.73,183.7,5.4434]
[1722049723093,0.17,183.74,183.7,5.4434]
[1722049723389,0.17,183.74,183.68,13.6102]
[1722049723390,5.4433,183.72,183.68,13.6102]
[1722049723561,18.2727,183.73,183.68,13.6102]
[1722049723759,0.17,183.72,183.68,13.6102]
[1722049723981,12.83,183.7,183.65,13.6127]
[1722049724185,0.17,183.69,183.65,13.6127]
[1722049724489,12.83,183.68,183.65,19.0578]
[1722049724678,0.17,183.67,183.62,13.615]
[1722049724870,0.34,183.67,183.62,13.615]
[1722049725071,0.34,183.67,183.64,5.4453]
[1722049725983,12.83,183.66,183.62,13.615]
[1722049726284,13.0,183.65,183.62,13.615]
[1722049726472,0.17,183.64,183.62,13.615]
[1722049726994,0.17,183.64,183.61,6.2235281]
[1722049727168,0.17,183.64,183.61,0.7773281]
[1722049727365,12.83,183.62,183.61,0.7773281]
[1722049727576,13.0,183.62,183.61,0.7773281]
[1722049727782,13.17,183.62,183.61,0.7773281]
[1722049728096,0.34,183.62,183.61,0.7773281]
[1722049728470,13.17,183.62,183.61,0.7773281]
[1722049728974,18.616,183.62,183.61,0.7773281]
[1722049729282,5.786,183.62,183.61,0.7773281]